bitfinex-derivatives/quotes_BTCF0:USTF0_20240902
["timestamp","ask_amount","ask_price","bid_price","bid_amount"]
[1725267742365,1.61892,58127.0,58126.0,0.00125799]
[1725267744468,1.0225778,58127.0,58126.0,0.00125799]
[1725267744961,1.0229778,58127.0,58126.0,0.00125799]
[1725267745765,0.3668578,58127.0,58126.0,0.00125799]
[1725267747465,0.3638578,58127.0,58126.0,0.00025799]
[1725267747670,0.3668578,58127.0,58126.0,0.00125799]
[1725267748469,0.3678578,58127.0,58126.0,0.00125799]
[1725267749667,0.1752728,58127.0,58126.0,0.00125799]
[1725267749869,0.5360728,58127.0,58126.0,0.00125799]
[1725267756468,0.3688578,58127.0,58126.0,0.00125799]
[1725267756970,0.3688578,58127.0,58126.0,0.10715799]
[1725267757674,0.3648578,58127.0,58126.0,0.10615799]
[1725267757861,0.3678578,58127.0,58126.0,0.10715799]
[1725267759673,0.3648578,58127.0,58126.0,0.10615799]
[1725267759874,0.3678578,58127.0,58126.0,0.10715799]
[1725267760676,0.3642,58127.0,58126.0,0.16737499]
[1725267760876,0.3612,58127.0,58126.0,0.16637499]
[1725267761076,0.3642,58127.0,58126.0,0.16737499]
[1725267762879,0.00025799,58137.0,58136.0,0.060206]
[1725267763078,0.05306149,58137.0,58136.0,0.200206]
[1725267764177,0.00025799,58137.0,58133.0,0.24]
[1725267764368,0.3598,58134.0,58127.0,0.060215]
[1725267766170,0.3598,58134.0,58128.0,0.1072]
[1725267766370,0.3598,58134.0,58129.0,0.14]
[1725267766371,0.3588,58134.0,58129.0,0.14]
[1725267766571,0.3588,58134.0,58131.0,0.060211]
[1725267766968,0.3588,58134.0,58133.0,0.14]
[1725267767580,0.3588,58134.0,58132.0,0.06021]
[1725267767772,0.0004,58133.0,58132.0,0.06021]
[1725267768578,0.0004,58133.0,58131.0,0.001]
[1725267768579,0.0004,58133.0,58131.0,0.06121]
[1725267769584,0.0004,58132.0,58131.0,0.06121]
[1725267770174,0.3618,58134.0,58132.0,0.0006]
[1725267770370,0.3618,58134.0,58132.0,0.06081]
[1725267770581,0.3618,58134.0,58133.0,0.060209]
[1725267771077,0.3588,58134.0,58133.0,0.060209]
[1725267773090,0.3628,58134.0,58133.0,0.061209]
[1725267773985,0.3628,58134.0,58133.0,0.201209]
[1725267775080,0.004,58134.0,58133.0,0.717249]
[1725267775282,0.004,58134.0,58133.0,0.201209]
[1725267775889,0.004,58134.0,58133.0,0.717249]
[1725267776183,0.004,58134.0,58133.0,0.201209]
[1725267779092,0.004,58134.0,58133.0,1.317249]
[1725267779281,0.11849571,58134.0,58133.0,1.317249]
[1725267780687,0.11849546,58134.0,58133.0,1.317249]
[1725267780882,0.11849513,58134.0,58133.0,1.317249]
[1725267782300,0.11849513,58134.0,58133.0,1.557249]
[1725267782798,0.22295963,58137.0,58136.0,0.060206]
[1725267782988,0.060185,58157.0,58137.0,0.516]
[1725267783187,0.0616873,58156.0,58155.0,0.060187]
[1725267783385,0.0616873,58156.0,58155.0,0.200187]
[1725267783586,0.0616873,58156.0,58155.0,0.060187]
[1725267783996,0.0616873,58156.0,58155.0,0.060587]
[1725267784691,0.00365228,58157.0,58155.0,0.060587]
[1725267784890,0.003,58156.0,58155.0,0.061587]
[1725267785084,0.003,58156.0,58155.0,0.061187]
[1725267785402,0.05578563,58156.0,58155.0,0.061187]
[1725267786399,0.05278563,58156.0,58155.0,0.061187]
[1725267786793,0.05278563,58156.0,58155.0,0.001]
[1725267787303,1.61664,58156.0,58155.0,0.001]
[1725267787596,1.66943041,58156.0,58155.0,0.001]
[1725267787799,1.66943041,58156.0,58150.0,0.00025799]
[1725267787996,0.5012,58151.0,58150.0,0.00025799]
[1725267788202,0.55299041,58151.0,58150.0,0.00025799]
[1725267788494,1.76891041,58151.0,58150.0,0.00025799]
[1725267788696,1.76891041,58151.0,58126.0,0.5008]
[1725267788905,0.3608,58138.0,58130.0,0.060212]
[1725267789093,0.31038908,58137.0,58130.0,0.060212]
[1725267789905,0.30938908,58137.0,58130.0,0.060212]
[1725267790493,0.3006,58137.0,58130.0,0.061212]
[1725267790694,0.3016,58137.0,58131.0,0.14]
[1725267791692,0.001,58137.0,58133.0,0.14]
[1725267791893,0.001,58137.0,58135.0,0.060207]
[1725267792101,0.001,58137.0,58136.0,0.101]
[1725267792300,0.001,58137.0,58135.0,0.060207]
[1725267792800,0.0004,58136.0,58135.0,0.060207]
[1725267793599,0.0004,58136.0,58135.0,0.061207]
[1725267794398,0.0034,58136.0,58135.0,0.061207]
[1725267795905,0.0004,58136.0,58135.0,0.060207]
[1725267796105,0.0024,58136.0,58135.0,0.061207]
[1725267797694,0.0034,58136.0,58135.0,0.061207]
[1725267800400,0.0024,58136.0,58135.0,0.061207]
[1725267801713,0.0014,58136.0,58135.0,0.061207]
[1725267802408,0.05420197,58136.0,58135.0,0.062207]
[1725267802610,0.19041558,58136.0,58135.0,0.002]
[1725267802813,0.05480197,58136.0,58135.0,0.002]
[1725267803814,0.05480197,58136.0,58135.0,0.062207]
[1725267805008,0.41560197,58136.0,58135.0,0.062207]
[1725267805518,0.41760197,58136.0,58135.0,0.062207]
[1725267806118,0.41660197,58136.0,58135.0,0.062207]
[1725267809113,0.41460197,58136.0,58135.0,0.061207]
[1725267809308,0.3638,58136.0,58135.0,0.062207]
[1725267811213,0.3618,58136.0,58135.0,0.061207]
[1725267811417,0.3628,58136.0,58135.0,0.062207]
[1725267812319,0.3618,58136.0,58135.0,0.061207]
[1725267812524,0.3628,58136.0,58135.0,0.062207]
[1725267813630,0.3628,58136.0,58135.0,0.002]
[1725267814326,0.3628,58136.0,58128.0,0.00025799]
[1725267814327,1.47884,58136.0,58128.0,0.00025799]
[1725267814526,0.5008,58129.0,58128.0,0.00025799]
[1725267814722,0.561014,58129.0,58112.0,0.06023]
[1725267814922,0.3608,58114.0,58113.0,0.06023]
[1725267815127,0.7216,58114.0,58111.0,0.1968]
[1725267815370,0.7216,58114.0,58109.0,0.0996]
[1725267815371,0.14,58112.0,58097.0,0.05451889]
[1725267815637,0.3588,58103.0,58094.0,0.0984]
[1725267816041,0.14,58102.0,58094.0,0.0984]
[1725267816441,0.139,58102.0,58094.0,0.0984]
[1725267816631,0.3608,58097.0,58094.0,0.0984]
[1725267816830,0.3608,58097.0,58090.0,0.060254]
[1725267817230,0.3598,58097.0,58090.0,0.060254]
[1725267817431,0.3598,58097.0,58093.0,0.14]
[1725267817840,0.3738,58097.0,58094.0,0.001]
[1725267818343,0.3678,58097.0,58094.0,0.001]
[1725267818930,0.3678,58097.0,58093.0,0.14]
[1725267819231,0.3818,58097.0,58094.0,0.001]
[1725267819434,0.3738,58097.0,58093.0,0.124]
[1725267819934,0.3738,58097.0,58094.0,0.001]
[1725267822042,0.3738,58097.0,58094.0,0.061249]
[1725267822337,0.3738,58097.0,58095.0,0.24]
[1725267823335,0.014,58097.0,58095.0,0.24]
[1725267825244,0.014,58097.0,58089.0,0.060255]
[1725267825245,0.563004,58100.0,58089.0,0.060255]
[1725267825435,0.3608,58094.0,58089.0,0.060255]
[1725267826243,0.3608,58094.0,58090.0,0.24]
[1725267830841,0.36442978,58094.0,58090.0,0.24]
[1725267831345,0.14,58092.0,58085.0,0.060259]
[1725267831553,0.3608,58088.0,58085.0,0.060259]
[1725267832546,0.31772726,58088.0,58085.0,0.060259]
[1725267833347,0.31772726,58088.0,58086.0,0.060258]
[1725267833845,0.31772726,58088.0,58087.0,0.060257]
[1725267835146,0.3608,58094.0,58089.0,0.060254]
[1725267835452,0.3608,58094.0,58091.0,0.060252]
[1725267835649,0.36437121,58094.0,58093.0,0.060651]
[1725267840557,0.36437121,58094.0,58093.0,0.300651]
[1725267842153,0.00357121,58094.0,58093.0,0.300651]
[1725267842349,0.00025799,58097.0,58096.0,0.060248]
[1725267842554,0.00025799,58097.0,58096.0,0.060648]
[1725267845056,0.00388115,58097.0,58096.0,0.060648]
[1725267846060,0.00388115,58097.0,58096.0,0.1117484]
[1725267846061,0.36468115,58097.0,58096.0,0.1117484]
[1725267846359,0.36468115,58097.0,58096.0,0.060648]
[1725267847548,0.41752194,58097.0,58096.0,0.060648]
[1725267848350,1.67392194,58097.0,58084.0,0.0854]
[1725267848548,0.3608,58087.0,58071.0,0.3608]
[1725267848759,0.3608,58080.0,58072.0,0.0854]
[1725267849060,0.05284914,58079.0,58074.0,0.14]
[1725267849254,0.00025821,58085.0,58083.0,0.060261]
[1725267849450,0.05284852,58084.0,58083.0,0.060261]
[1725267853254,0.00382093,58085.0,58083.0,0.060261]
[1725267853453,0.05284648,58084.0,58083.0,0.060261]
[1725267854562,0.00382093,58085.0,58084.0,0.06026]
[1725267854763,0.00382093,58085.0,58084.0,0.27669319]
[1725267856578,0.00382093,58085.0,58084.0,0.19146518]
[1725267857272,0.00382093,58085.0,58084.0,0.27673948]
[1725267857569,0.00382093,58085.0,58084.0,0.1455343]
[1725267859371,0.00382093,58085.0,58084.0,0.06026]
[1725267859577,0.36462093,58085.0,58084.0,0.06026]
[1725267862575,0.50462093,58085.0,58084.0,0.06026]
[1725267865279,0.36462093,58085.0,58084.0,0.06026]
[1725267865577,0.50502093,58085.0,58084.0,0.06026]
[1725267866868,0.50502093,58085.0,58084.0,0.07196262]
[1725267867479,0.58532093,58085.0,58084.0,0.07196262]
[1725267869078,0.22452093,58085.0,58084.0,0.07196262]
[1725267869380,0.58532093,58085.0,58084.0,0.07196262]
[1725267869566,0.63817267,58085.0,58084.0,0.07196262]
[1725267871882,0.27737267,58085.0,58084.0,0.07196262]
[1725267872181,0.63817267,58085.0,58084.0,0.07196262]
[1725267874479,0.55787267,58085.0,58084.0,0.07196262]
[1725267876378,0.41787267,58085.0,58084.0,0.07196262]
[1725267877082,0.41787195,58085.0,58084.0,0.07196262]
[1725267877483,0.55787195,58085.0,58084.0,0.07196262]
[1725267877694,0.06026,58084.0,58072.0,0.13657365]
[1725267877876,0.5008,58073.0,58072.0,0.0854]
[1725267878082,0.5012,58073.0,58072.0,0.0854]
[1725267878795,0.5012,58073.0,58071.0,0.060273]
[1725267878985,0.0004,58072.0,58071.0,0.060273]
[1725267882194,0.1404,58072.0,58071.0,0.060273]
[1725267883186,0.5012,58072.0,58064.0,0.0806]
[1725267883392,0.3608,58065.0,58064.0,0.140881]
[1725267883590,0.3612,58065.0,58064.0,0.140881]
[1725267885284,0.0004,58065.0,58064.0,1.257561]
[1725267885682,0.0004,58065.0,58064.0,1.497561]
[1725267886092,0.0004,58065.0,58064.0,1.5012174]
[1725267890090,0.0004,58065.0,58064.0,1.8620174]
[1725267891003,0.0004,58065.0,58064.0,1.2620174]
[1725267892000,0.00025821,58070.0,58064.0,1.8620174]
[1725267892218,0.00025821,58070.0,58069.0,0.200276]
[1725267892390,0.00025821,58070.0,58069.0,0.200676]
[1725267892589,0.00025821,58070.0,58069.0,0.300676]
[1725267892786,0.00025821,58070.0,58069.0,0.060676]
[1725267893203,0.053118,58070.0,58069.0,0.060676]
[1725267895902,0.0568224,58070.0,58069.0,0.060676]
[1725267896095,0.0568224,58070.0,58069.0,0.0004]
[1725267897300,0.0568224,58070.0,58069.0,0.1404]
[1725267898297,0.0568224,58070.0,58069.0,0.200676]
[1725267899796,0.00396261,58070.0,58069.0,0.200676]
[1725267900707,0.00396261,58070.0,58069.0,0.26908331]
[1725267900905,0.00396261,58070.0,58069.0,0.200676]
[1725267901407,0.00396261,58070.0,58069.0,0.26908331]
[1725267903307,0.00396261,58070.0,58069.0,0.12908331]
[1725267903507,0.00396261,58070.0,58069.0,0.060676]
[1725267906715,0.00025821,58070.0,58069.0,0.060676]
[1725267907202,0.00025821,58070.0,58069.0,0.200676]
[1725267907601,0.00025821,58070.0,58069.0,0.060676]
[1725267907811,0.05311667,58070.0,58069.0,0.060676]
[1725267908703,0.05311667,58070.0,58069.0,0.0004]
[1725267908908,0.05311667,58070.0,58053.0,0.5399]
[1725267908909,1.82082136,58070.0,58049.0,0.3984]
[1725267909101,0.3608,58058.0,58049.0,0.3984]
[1725267909301,0.0004,58050.0,58049.0,0.134196]
[1725267909609,0.05325846,58050.0,58049.0,0.134196]
[1725267910204,0.05325846,58050.0,58049.0,1.250996]
[1725267910410,0.05325846,58050.0,58049.0,0.134196]
[1725267910603,0.05325846,58050.0,58049.0,0.650996]
[1725267912211,0.05325846,58050.0,58049.0,0.890996]
[1725267913312,0.05327027,58050.0,58049.0,0.890996]
[1725267913512,0.05327027,58050.0,58049.0,0.514196]
[1725267914517,0.05327027,58050.0,58049.0,0.440296]
[1725267914713,0.0004,58050.0,58049.0,0.440296]
[1725267915010,0.0004,58050.0,58049.0,0.200296]
[1725267917411,0.0004,58050.0,58049.0,0.060296]
[1725267917609,0.0004,58050.0,58049.0,0.26875679]
[1725267919715,0.0004,58050.0,58049.0,0.11164195]
[1725267919907,0.00398352,58050.0,58049.0,0.11164156]
[1725267920103,0.0004,58050.0,58049.0,0.11164156]
[1725267920517,0.0004,58050.0,58049.0,0.11163326]
[1725267921730,0.0004,58050.0,58049.0,0.060296]
[1725267925305,0.0004,58050.0,58026.0,0.6853]
[1725267925306,0.19328257,58050.0,58030.0,0.060315]
[1725267925606,0.3608,58042.0,58041.0,0.131805]
[1725267925811,0.3612,58042.0,58041.0,0.131805]
[1725267926415,0.3612,58042.0,58035.0,0.14]
[1725267926618,0.0004,58036.0,58035.0,0.200311]
[1725267927318,0.0004,58036.0,58035.0,0.440311]
[1725267929808,0.00412134,58036.0,58035.0,0.440311]
[1725267930411,0.0004,58036.0,58035.0,0.440311]
[1725267930815,0.0004,58036.0,58035.0,0.49164826]
[1725267931417,0.3608,58042.0,58041.0,0.060305]
[1725267931718,0.3608,58042.0,58041.0,0.200705]
[1725267933423,0.3608,58042.0,58041.0,0.060705]
[1725267940923,0.3608,58042.0,58041.0,0.200705]
[1725267942219,0.3608,58042.0,58041.0,0.060705]
[1725267944927,0.41368702,58042.0,58041.0,0.0004]
[1725267951934,0.3608,58042.0,58041.0,0.0004]
[1725267952439,0.3608,58042.0,58029.0,0.14]
[1725267952440,0.51688,58041.0,58035.0,0.05158211]
[1725267952634,0.060313,58033.0,58032.0,0.05158211]
[1725267952932,0.060313,58033.0,58017.0,1.2911]
[1725267952933,0.5008,58035.0,58029.0,0.05158211]
[1725267953129,0.5012,58030.0,58027.0,0.05158211]
[1725267953337,0.200718,58028.0,58025.0,0.05158211]
[1725267953537,0.5008,58026.0,58024.0,0.05158211]
[1725267953838,0.0004,58025.0,58024.0,0.05158211]
[1725267954340,0.0004,58025.0,58023.0,0.05158211]
[1725267954530,0.0004,58024.0,58023.0,0.060323]
[1725267954832,0.0004,58024.0,58023.0,0.11190511]
[1725267955536,0.0004,58024.0,58023.0,0.060323]
[1725267955924,0.00406858,58024.0,58023.0,0.060323]
[1725267956129,0.0004,58024.0,58023.0,0.060323]
[1725267957825,0.00406021,58024.0,58023.0,0.060323]
[1725267959437,0.00406021,58024.0,58023.0,0.11184148]
[1725267959637,0.00406021,58024.0,58023.0,0.300323]
[1725267960535,1e-06,58024.0,58023.0,0.300323]
[1725267960733,0.0654,58042.0,58023.0,0.300323]
[1725267960734,0.36105845,58038.0,58035.0,0.060311]
[1725267960948,0.00025845,58038.0,58035.0,0.200711]
[1725267961747,0.00025845,58038.0,58037.0,0.060309]
[1725267961941,0.00025845,58038.0,58037.0,0.060709]
[1725267965744,0.00025845,58038.0,58037.0,0.421509]
[1725267968957,4.5e-07,58038.0,58037.0,0.421509]
[1725267969451,4.5e-07,58038.0,58037.0,0.481818]
[1725267971644,4.5e-07,58038.0,58037.0,1.659047]
[1725267971850,0.3608,58051.0,58050.0,0.060295]
[1725267972148,0.36446215,58051.0,58050.0,0.200295]
[1725267972349,0.36446215,58051.0,58050.0,0.200695]
[1725267972854,0.00025845,58056.0,58055.0,0.06029]
[1725267973045,0.00025845,58056.0,58055.0,0.20069]
[1725267973246,0.00381836,58056.0,58055.0,0.20069]
[1725267975346,0.3608,58080.0,58076.0,0.060268]
[1725267975546,0.7216,58080.0,58076.0,0.060268]
[1725267975850,0.36288001,58080.0,58076.0,0.060668]
[1725267976042,0.36288001,58080.0,58076.0,0.0004]
[1725267976043,0.58243638,58077.0,58076.0,0.0004]
[1725267976646,0.58243638,58077.0,58076.0,0.060668]
[1725267976647,0.06587638,58077.0,58076.0,0.060668]
[1725267977049,0.00357638,58077.0,58076.0,0.060668]
[1725267977251,0.3608,58080.0,58078.0,0.060266]
[1725267977552,0.36440402,58080.0,58078.0,0.060266]
[1725267977747,0.36440402,58080.0,58079.0,0.0004]
[1725267978452,0.07445502,58080.0,58079.0,0.4153]
[1725267978653,0.3608,58129.0,58086.0,0.3608]
[1725267978862,0.3608,58123.0,58116.0,0.14]
[1725267979155,0.3608,58122.0,58116.0,0.060226]
[1725267979355,0.74,58123.0,58122.0,0.060221]
[1725267979356,0.00136,58123.0,58122.0,0.060221]
[1725267979565,0.00025818,58128.0,58122.0,0.060621]
[1725267979756,0.00025818,58128.0,58127.0,0.0004]
[1725267979960,0.00025818,58128.0,58124.0,0.3608]
[1725267980653,0.00025818,58128.0,58122.0,0.0004]
[1725267980654,0.65612,58127.0,58122.0,0.0004]
[1725267980853,0.14,58123.0,58122.0,0.0004]
[1725267981249,1.31766,58123.0,58122.0,0.0004]
[1725267981857,1.50283695,58123.0,58113.0,0.060229]
[1725267982066,0.18517695,58122.0,58112.0,0.21159644]
[1725267982274,0.18517695,58121.0,58112.0,0.21159644]
[1725267982564,0.1145507,58120.0,58112.0,0.21159644]
[1725267982864,0.1145507,58119.0,58113.0,0.060229]
[1725267983066,0.1145507,58118.0,58113.0,0.060229]
[1725267983262,0.1145507,58117.0,58113.0,0.060229]
[1725267983454,0.1145507,58116.0,58113.0,0.060229]
[1725267983759,0.1145507,58115.0,58113.0,0.060229]
[1725267983950,0.1145507,58114.0,58113.0,0.060229]
[1725267984152,0.00144001,58119.0,58113.0,0.65624]
[1725267984352,0.00025818,58128.0,58127.0,0.060215]
[1725267984562,0.11478855,58128.0,58127.0,0.561015]
[1725267984861,0.11478855,58128.0,58127.0,0.421015]
[1725267985060,0.33492932,58128.0,58127.0,0.561015]
[1725267985465,0.11478855,58128.0,58127.0,0.561015]
[1725267987158,0.11478855,58128.0,58127.0,0.5008]
[1725267987463,0.05307385,58128.0,58127.0,0.5012]
[1725267987863,0.05307385,58128.0,58127.0,0.561415]
[1725267988463,8.5e-07,58128.0,58127.0,0.561415]
[1725267989289,0.0617147,58148.0,58135.0,0.060207]
[1725267989464,0.21993643,58159.0,58158.0,0.060183]
[1725267989769,0.00025789,58164.0,58158.0,0.3608]
[1725267990284,0.51605789,58164.0,58163.0,0.0004]
[1725267990476,0.51605789,58164.0,58158.0,0.3608]
[1725267992157,0.00025789,58164.0,58158.0,0.3608]
[1725267992767,0.00025789,58164.0,58163.0,0.17]
[1725267994866,0.00025789,58164.0,58163.0,0.5308]
[1725267995755,0.00025789,58164.0,58162.0,0.060179]
[1725267998566,0.00025789,58164.0,58162.0,0.230179]
[1725267999480,0.00025789,58164.0,58163.0,0.3608]
[1725268000764,0.00025789,58164.0,58158.0,0.17]
[1725268000969,0.00025789,58164.0,58163.0,0.3608]
[1725268001668,1.11605789,58164.0,58157.0,0.3608]
[1725268001870,0.00025789,58164.0,58157.0,0.3608]
[1725268002172,0.00394615,58164.0,58157.0,0.3608]
[1725268002363,0.00025789,58164.0,58157.0,0.3608]
[1725268002764,0.3608,58162.0,58153.0,0.00025789]
[1725268003072,0.060186,58156.0,58153.0,0.00025789]
[1725268003267,0.05278885,58155.0,58153.0,0.00025789]
[1725268003766,0.05278885,58155.0,58153.0,0.17025789]
[1725268004069,0.00386736,58164.0,58153.0,0.17025789]
[1725268004070,0.00386736,58164.0,58153.0,0.23044689]
[1725268004268,0.05278629,58163.0,58158.0,0.3608]
[1725268004571,0.05278588,58162.0,58158.0,0.3608]
[1725268004772,0.05278588,58161.0,58158.0,0.3608]
[1725268004969,0.00386736,58164.0,58158.0,0.3608]
[1725268005267,0.00386736,58164.0,58163.0,0.0004]
[1725268005475,0.51966736,58164.0,58163.0,0.0004]
[1725268005669,1.11966736,58164.0,58163.0,0.0004]
[1725268008173,1.17984436,58164.0,58153.0,0.00025789]
[1725268008472,0.06404436,58164.0,58153.0,0.00025789]
[1725268008876,0.060184,58158.0,58153.0,0.00025789]
[1725268009873,0.060184,58157.0,58153.0,0.00025789]
[1725268012463,0.060184,58157.0,58154.0,0.3608]
[1725268013466,0.05278884,58156.0,58154.0,0.3608]
[1725268013676,0.05278884,58155.0,58154.0,0.3608]
[1725268014076,0.060184,58157.0,58154.0,0.3608]
[1725268014278,0.05278881,58156.0,58154.0,0.3608]
[1725268014577,0.05278883,58155.0,58154.0,0.3608]
[1725268014975,0.05278883,58155.0,58153.0,0.00025789]
[1725268015274,0.05278883,58154.0,58153.0,0.00025789]
[1725268015574,0.05278883,58154.0,58153.0,0.36105789]
[1725268016283,1.16866883,58154.0,58153.0,0.36105789]
[1725268017073,0.56866883,58154.0,58153.0,0.36105789]
[1725268017471,0.05278883,58154.0,58153.0,0.36105789]
[1725268017781,0.05278883,58154.0,58153.0,0.42124689]
[1725268018371,0.00025789,58164.0,58163.0,0.060178]
[1725268018574,0.05304355,58164.0,58163.0,0.560978]
[1725268018774,0.05303636,58164.0,58163.0,0.561378]
[1725268019077,0.05303636,58164.0,58163.0,0.922178]
[1725268020075,0.0072,58170.0,58167.0,0.060174]
[1725268020283,0.0072,58170.0,58169.0,0.5012]
[1725268020487,0.01081713,58170.0,58169.0,0.5012]
[1725268020683,0.0072,58170.0,58169.0,0.561372]
[1725268021184,0.0072,58170.0,58169.0,0.77800852]
[1725268021384,0.0072,58170.0,58169.0,0.6469865]
[1725268021887,0.0072,58170.0,58169.0,0.561372]
[1725268023085,0.0072,58170.0,58169.0,0.77800756]
[1725268023283,0.0072,58170.0,58169.0,0.69239306]
[1725268024389,0.00389922,58175.0,58173.0,0.060167]
[1725268024577,0.00389922,58175.0,58174.0,0.5008]
[1725268026578,0.00389922,58175.0,58174.0,0.56917992]
[1725268026798,0.00389922,58175.0,58174.0,0.5008]
[1725268027289,0.00389922,58175.0,58174.0,0.560967]
[1725268028388,0.00025789,58175.0,58174.0,0.560967]
[1725268029090,0.00025789,58175.0,58174.0,0.420967]
[1725268029304,0.51593789,58175.0,58174.0,0.3608]
[1725268029485,0.060167,58174.0,58169.0,0.0004]
[1725268029679,0.0595,58173.0,58169.0,0.0004]
[1725268031191,0.3608,58170.0,58169.0,0.0004]
[1725268031582,1.47652,58170.0,58169.0,0.0004]
[1725268032275,1.536691,58170.0,58169.0,0.0004]
[1725268032983,1.58947439,58170.0,58169.0,0.0004]
[1725268034599,1.22867439,58170.0,58169.0,0.0004]
[1725268034892,0.060174,58167.0,58155.0,0.3608]
[1725268035085,0.25295739,58167.0,58155.0,0.3608]
[1725268035287,1.36871739,58167.0,58155.0,0.3608]
[1725268035483,1.430397,58167.0,58155.0,0.3608]
[1725268037490,1.430397,58167.0,58150.0,0.14]
[1725268037689,1.430397,58167.0,58155.0,0.3608]
[1725268037690,1.791197,58167.0,58155.0,0.3608]
[1725268040599,1.79120139,58167.0,58155.0,0.3608]
[1725268041098,2.15200139,58167.0,58153.0,0.060188]
[1725268042198,2.037534,58167.0,58153.0,0.060188]
[1725268042589,2.037534,58167.0,58154.0,0.060187]
[1725268044291,1.676734,58167.0,58155.0,0.3608]
[1725268045799,1.076734,58167.0,58155.0,0.3608]
[1725268046100,1.676734,58167.0,58155.0,0.3608]
[1725268046284,1.076734,58167.0,58155.0,0.3608]
[1725268046486,0.00404475,58170.0,58150.0,0.14]
[1725268046487,0.00404475,58170.0,58163.0,0.5008]
[1725268046793,0.0004,58170.0,58169.0,0.421372]
[1725268047292,0.0004,58170.0,58169.0,0.661372]
[1725268048895,0.0004,58170.0,58169.0,1.177092]
[1725268050201,0.0004,58170.0,58169.0,0.661372]
[1725268050522,0.0004,58170.0,58166.0,0.00025789]
[1725268050523,1.25612,58170.0,58166.0,0.00025789]
[1725268050688,0.63596,58169.0,58156.0,0.3608]
[1725268050889,0.3608,58164.0,58156.0,0.3608]
[1725268051089,0.0004,58157.0,58156.0,0.3608]
[1725268051299,0.14,58161.0,58156.0,0.3608]
[1725268053491,0.14,58161.0,58153.0,0.00025789]
[1725268053897,0.0004,58154.0,58153.0,0.00025789]
[1725268056701,0.00401466,58154.0,58153.0,0.00025789]
[1725268056895,0.0004,58154.0,58153.0,0.00025789]
[1725268057105,0.3612,58154.0,58153.0,0.00025789]
[1725268057293,0.41399003,58154.0,58153.0,0.00025789]
[1725268058106,0.41757382,58154.0,58153.0,0.00025789]
[1725268059396,0.41757681,58154.0,58153.0,0.00025789]
[1725268059706,0.05677681,58154.0,58153.0,0.00025789]
[1725268061807,0.05677681,58154.0,58153.0,0.06044689]
[1725268062908,0.05677681,58154.0,58153.0,1.17632689]
[1725268062909,0.05319302,58154.0,58153.0,1.17632689]
[1725268063201,0.05319302,58154.0,58153.0,0.20044689]
[1725268063901,0.05318474,58154.0,58153.0,0.20044689]
[1725268064102,0.05318474,58154.0,58153.0,0.06044689]
[1725268064406,0.05318474,58154.0,58153.0,0.00025789]
[1725268064997,0.11486947,58154.0,58153.0,0.00025789]
[1725268065197,1.01708,58154.0,58153.0,0.00025789]
[1725268065394,1.01708,58154.0,58153.0,1e-08]
[1725268066506,1.077268,58154.0,58153.0,1e-08]
[1725268067206,0.561388,58154.0,58153.0,1e-08]
[1725268068212,0.3612,58154.0,58153.0,1e-08]
[1725268068411,0.0004,58154.0,58153.0,1e-08]
[1725268070101,0.0004,58154.0,58153.0,0.36080001]
[1725268070604,0.0004,58154.0,58153.0,1e-08]
[1725268071010,0.0004,58154.0,58153.0,0.36080001]
[1725268072016,0.0004,58154.0,58153.0,0.42098901]
[1725268072308,0.11487249,58154.0,58153.0,0.42098901]
[1725268073513,0.11487138,58154.0,58153.0,0.42098901]
[1725268078414,0.11487138,58154.0,58153.0,0.93686901]
[1725268078709,0.04423963,58160.0,58159.0,0.060182]
[1725268078914,0.00025789,58164.0,58163.0,0.060178]
[1725268079119,0.00025789,58164.0,58163.0,0.560978]
[1725268079339,0.00025789,58164.0,58163.0,1.676778]
[1725268082410,0.00025789,58164.0,58163.0,1.916778]
[1725268082924,8.9e-07,58164.0,58163.0,1.916778]
[1725268086922,8.9e-07,58164.0,58163.0,0.420978]
[1725268087112,0.06017789,58164.0,58163.0,0.3608]
[1725268087312,0.24517112,58164.0,58163.0,0.3608]
[1725268087914,0.18499412,58164.0,58163.0,0.32472001]
[1725268088115,0.18499412,58164.0,58163.0,0.3608]
[1725268089021,0.18856554,58164.0,58159.0,0.3612]
[1725268089219,0.18499323,58163.0,58159.0,0.3612]
[1725268089419,0.0004,58160.0,58159.0,0.0004]
[1725268089621,0.18539323,58160.0,58159.0,0.0004]
[1725268089822,0.18539323,58160.0,58159.0,0.3612]
[1725268091021,0.11483904,58160.0,58159.0,1.537222]
[1725268091619,0.11483904,58160.0,58159.0,1.777222]
[1725268093424,0.18539323,58160.0,58159.0,1.777222]
[1725268093920,0.18539323,58160.0,58159.0,1.58549981]
[1725268094311,0.13261967,58160.0,58159.0,1.58549981]
[1725268095021,8.9e-07,58164.0,58163.0,0.060178]
[1725268095226,8.9e-07,58164.0,58163.0,0.560978]
[1725268095425,8.9e-07,58164.0,58163.0,1.676778]
[1725268095625,8.9e-07,58164.0,58163.0,1.316778]
[1725268096432,8.9e-07,58164.0,58163.0,1.916778]
[1725268097525,8.9e-07,58164.0,58163.0,1.317178]
[1725268097727,8.9e-07,58164.0,58163.0,1.917178]
[1725268098224,8.9e-07,58164.0,58163.0,1.317178]
[1725268098429,8.9e-07,58164.0,58163.0,1.917178]
[1725268099220,8.9e-07,58164.0,58163.0,0.561378]
[1725268101317,8.9e-07,58164.0,58163.0,0.421378]
[1725268101520,8.9e-07,58164.0,58163.0,0.3612]
[1725268101835,0.00359735,58164.0,58163.0,0.3612]
[1725268102128,8.9e-07,58164.0,58163.0,0.421378]
[1725268103922,8.9e-07,58164.0,58163.0,1.537178]
[1725268104127,8.9e-07,58164.0,58163.0,1.635678]
[1725268104732,8.9e-07,58164.0,58163.0,1.63923016]
[1725268106937,8.9e-07,58164.0,58163.0,1.87923016]
[1725268109239,8.9e-07,58167.0,58166.0,0.060175]
[1725268109533,8.9e-07,58167.0,58166.0,0.560975]
[1725268109730,8.9e-07,58167.0,58166.0,1.73691]
[1725268109928,8.9e-07,58167.0,58166.0,1.97691]
[1725268110825,0.00025789,58172.0,58171.0,0.06017]
[1725268110826,8.9e-07,58172.0,58171.0,0.06017]